bitfinex/quotes_SOLUSD_20260311
["timestamp","ask_amount","ask_price","bid_price","bid_amount"]
[1773240833976,11.54214614,86.639,86.61,11.54601085]
[1773240834178,11.54214614,86.639,86.611,3.89200631]
[1773240835175,40.39313743,86.649,86.613,3.89200631]
[1773240836559,7.46386795,86.64,86.613,3.89200631]
[1773240837073,40.39313743,86.649,86.613,3.89200631]
[1773240837271,40.39313743,86.649,86.615,3.89200631]
[1773240837577,6.62443302,86.658,86.641,3.89200631]
[1773240840757,7.46386795,86.69,86.651,3.77850109]
[1773240840975,11.53431728,86.698,86.661,3.77850109]
[1773240841177,11.53431728,86.698,86.671,3.77850109]
[1773240841861,11.53362628,86.703,86.672,11.53775152]
[1773240842066,11.53362628,86.703,86.673,3.77850109]
[1773240842764,7.46386795,86.7,86.673,3.77850109]
[1773240843179,7.46386795,86.69,86.665,3.77850109]
[1773240843487,7.46386795,86.69,86.65,28.8515027]
[1773240843488,3.09411135,86.682,86.648,3.77850109]
[1773240843775,3.09411135,86.679,86.642,3.77850109]
[1773240843980,3.09411135,86.679,86.613,46.18238688]
[1773240843981,3.09411135,86.696,86.661,3.77850109]
[1773240844584,11.53479838,86.695,86.661,3.77850109]
[1773240844879,3.09411135,86.696,86.661,3.77850109]
[1773240845087,3.09407114,86.708,86.671,3.77850109]
[1773240845886,11.53302645,86.708,86.681,3.77850109]
[1773240846779,3.09505884,86.707,86.672,11.53775152]
[1773240847379,3.09505884,86.707,86.672,15.31625261]
[1773240847575,7.46386795,86.7,86.672,15.31625261]
[1773240847777,10.55994243,86.7,86.672,15.31625261]
[1773240848969,3.09707846,86.698,86.672,15.31625261]
[1773240849170,11.53415841,86.699,86.657,3.77850109]
[1773240849171,3.09707846,86.689,86.657,3.77850109]
[1773240850093,3.09707846,86.689,86.658,11.5396155]
[1773240850384,3.09707846,86.689,86.658,15.31811659]
[1773240850771,3.09707846,86.689,86.659,3.77850109]
[1773240851787,14.63261652,86.689,86.66,15.31785027]
[1773240851982,14.63261652,86.689,86.661,3.77850109]
[1773240854396,14.63261652,86.689,86.662,11.53908287]
[1773240855665,14.63261652,86.689,86.663,3.77850109]
[1773240855864,11.53553806,86.689,86.665,3.77850109]
[1773240856286,7.46386795,86.69,86.665,3.77850109]
[1773240856487,3.10379075,86.697,86.665,3.77850109]
[1773240856673,3.1047061,86.689,86.664,11.53881657]
[1773240856986,3.1047061,86.689,86.598,46.19008445]
[1773240856987,1.87981979,86.669,86.622,3.77850109]
[1773240857187,2.56,86.675,86.631,3.77850109]
[1773240857491,1.87981979,86.679,86.641,3.77850109]
[1773240858604,86.50918149,86.696,86.64,7.46386795]
[1773240858605,11.53346222,86.705,86.686,3.77850109]
[1773240858773,11.53346222,86.705,86.677,3.77850109]
[1773240859096,3.74590415,86.699,86.66,7.46386795]
[1773240859599,3.74590415,86.699,86.67,7.46386795]
[1773240859892,3.74590415,86.699,86.66,7.46386795]
[1773240861195,11.53429144,86.698,86.662,3.6275867]
[1773240861690,3.84477164,86.689,86.662,3.6275867]
[1773240861881,3.84477164,86.689,86.65,10.12386795]
[1773240861882,3.84477164,86.689,86.654,3.6275867]
[1773240862577,7.46386795,86.68,86.654,3.6275867]
[1773240862777,11.30863959,86.68,86.654,3.6275867]
[1773240863179,3.84477164,86.678,86.65,2.66]
[1773240863399,3.84477164,86.67,86.65,2.66]
[1773240863783,3.84477164,86.669,86.631,3.6275867]
[1773240863991,1.4421191,86.678,86.631,3.6275867]
[1773240863992,3.84477164,86.659,86.631,3.6275867]
[1773240864790,3.84477164,86.666,86.632,3.6275867]
[1773240865175,7.46386795,86.65,86.622,3.6275867]
[1773240865381,3.84477164,86.649,86.622,3.6275867]
[1773240865693,11.30863959,86.64,86.612,3.6275867]
[1773240865894,3.84477164,86.649,86.619,3.6275867]
[1773240867291,3.84477164,86.649,86.622,11.54441135]
[1773240867292,11.54094728,86.648,86.622,11.54441135]
[1773240867502,3.84477164,86.647,86.621,31.30339548]
[1773240867693,11.30863959,86.64,86.621,27.67580878]
[1773240867901,3.84477164,86.64,86.621,27.67580878]
[1773240868080,40.39331548,86.648,86.622,3.6275867]
[1773240869495,44.23808712,86.648,86.622,3.6275867]
[1773240870006,44.23808712,86.648,86.621,27.67580878]
[1773240870007,7.46386795,86.64,86.621,27.67580878]
[1773240870208,3.84477164,86.639,86.603,3.6275867]
[1773240870501,3.84477164,86.639,86.604,3.6275867]
[1773240870800,3.84477164,86.647,86.611,3.6275867]
[1773240871380,11.54121367,86.646,86.613,3.6275867]
[1773240871781,3.84477164,86.645,86.613,3.6275867]
[1773240871979,3.84477164,86.639,86.613,3.6275867]
[1773240872189,11.54121367,86.646,86.613,3.6275867]
[1773240872379,3.84477164,86.645,86.613,3.6275867]
[1773240872697,3.84477164,86.673,86.631,3.6275867]
[1773240872985,11.30863959,86.67,86.641,3.6275867]
[1773240873379,15.38282741,86.67,86.643,3.6275867]
[1773240873594,22.84669536,86.67,86.643,3.6275867]
[1773240873796,3.84477164,86.669,86.643,3.6275867]
[1773240873985,7.46386795,86.68,86.643,3.6275867]
[1773240874384,11.30863959,86.68,86.643,3.6275867]
[1773240874588,3.84477164,86.679,86.651,3.6275867]
[1773240875409,15.3817245,86.678,86.652,11.54041453]
[1773240875704,3.84477164,86.686,86.653,3.6275867]
[1773240875886,15.38065978,86.686,86.653,3.6275867]
[1773240876088,3.84477164,86.685,86.653,3.6275867]
[1773240876688,11.53535666,86.69,86.661,3.6275867]
[1773240876888,11.53588814,86.686,86.661,3.6275867]
[1773240878405,7.46386795,86.68,86.651,3.6275867]
[1773240878605,3.84477164,86.679,86.651,3.6275867]
[1773240878902,3.84477164,86.679,86.651,15.16813441]
[1773240879805,3.84477164,86.679,86.652,3.6275867]
[1773240879991,11.53695286,86.678,86.652,3.6275867]
[1773240880306,7.46386795,86.69,86.654,3.51395843]
[1773240880307,11.53648136,86.682,86.654,3.51395843]
[1773240880690,3.71589942,86.699,86.661,3.51395843]
[1773240880896,11.53322722,86.706,86.685,3.51395843]
[1773240881088,11.53322722,86.706,86.67,7.46386795]
[1773240881089,11.53322722,86.706,86.671,3.51395843]
[1773240881406,3.71589942,86.725,86.7,10.97782638]
[1773240881702,15.24666085,86.725,86.701,3.51395843]
[1773240881926,3.71589942,86.724,86.691,3.51395843]
[1773240882313,11.53096641,86.723,86.693,3.51395843]
[1773240882814,11.53096641,86.723,86.701,3.51395843]
[1773240883308,11.53030163,86.728,86.701,3.51395843]
[1773240883902,0.2,86.73,86.71,10.97782638]
[1773240884206,11.53016868,86.729,86.71,15.04662409]
[1773240884400,0.2,86.73,86.71,15.04662409]
[1773240884606,15.2460681,86.729,86.705,11.53327438]
[1773240885796,0.2,86.73,86.702,3.51395843]
[1773240888112,11.73015136,86.73,86.704,3.51395843]
[1773240888414,0.2,86.73,86.704,3.51395843]
[1773240888902,0.2,86.73,86.71,7.46386795]
[1773240889104,0.2,86.73,86.71,10.97782638]
[1773240889309,3.91589942,86.73,86.704,3.51395843]
[1773240889712,11.53016868,86.729,86.704,3.51395843]
[1773240890012,3.53285023,86.728,86.704,3.51395843]
[1773240890215,36.04215739,86.746,86.703,11.53362628]
[1773240890216,7.22222558,86.746,86.721,3.83221926]
[1773240890404,7.22222558,86.746,86.731,3.83221926]
[1773240890610,1.44049045,86.776,86.705,40.36676085]
[1773240890611,3.53285023,86.779,86.751,3.83221926]
[1773240891012,3.53285023,86.779,86.741,3.83221926]
[1773240891600,3.53285023,86.769,86.73,7.44713045]
[1773240891805,3.53285023,86.769,86.731,3.83221926]
[1773240892703,3.53285023,86.767,86.733,3.83221926]
[1773240893319,3.53285023,86.759,86.727,11.53030386]
[1773240894304,3.53285023,86.759,86.73,7.44713045]
[1773240894917,3.53285023,86.739,86.71,7.44713045]
[1773240895122,3.53285023,86.729,86.695,2.66]
[1773240895331,3.53285023,86.719,86.693,11.53495668]
[1773240895618,10.97998068,86.73,86.694,3.83221926]
[1773240895825,3.53285023,86.739,86.711,3.83221926]
[1773240896209,1.4409388,86.749,86.701,3.83221926]
[1773240896210,7.44713045,86.73,86.701,3.83221926]
[1773240896410,3.53285023,86.732,86.701,3.83221926]
[1773240897010,11.5299028,86.731,86.703,3.83221926]
[1773240898803,3.53285023,86.731,86.705,3.83221926]
[1773240899003,1.44080592,86.757,86.711,3.83221926]
[1773240899004,3.53285023,86.741,86.711,3.83221926]
[1773240899204,3.53285023,86.739,86.711,3.83221926]
[1773240899811,3.53285023,86.739,86.705,3.83221926]
[1773240900523,3.53285023,86.729,86.7,11.53395922]
[1773240900719,3.53285023,86.728,86.701,3.83221926]
[1773240900905,3.53285023,86.736,86.701,3.83221926]
[1773240901104,15.0622213,86.735,86.701,3.83221926]
[1773240901307,3.53285023,86.729,86.701,3.83221926]
[1773240901507,3.53285023,86.729,86.695,14.19463031]
[1773240901702,3.53285023,86.729,86.696,3.83221926]
[1773240902607,3.53285023,86.719,86.664,3.83221926]
[1773240902924,3.53285023,86.719,86.624,46.17648694]
[1773240902925,3.53285023,86.689,86.658,15.37182202]
[1773240903731,3.53285023,86.689,86.63,3.69383402]
[1773240903732,3.53285023,86.669,86.635,3.83221926]
[1773240904217,3.53285023,86.669,86.639,3.83221926]
[1773240904439,3.53285023,86.659,86.63,11.54325474]
[1773240904612,3.53285023,86.659,86.63,18.99038519]
[1773240904613,15.07241419,86.659,86.63,18.99038519]
[1773240904812,15.07241419,86.659,86.631,3.83221926]
[1773240905319,3.53285023,86.658,86.631,3.83221926]
[1773240905718,3.53285023,86.658,86.63,11.54325474]
[1773240905915,3.53285023,86.658,86.617,28.86258547]
[1773240905916,7.44713045,86.64,86.615,11.5453426]
[1773240906116,7.44713045,86.64,86.605,3.83221926]
[1773240906117,3.53285023,86.639,86.605,3.83221926]
[1773240906814,3.53285023,86.649,86.611,3.83221926]
[1773240907321,10.97998068,86.65,86.621,3.83221926]
[1773240907931,3.53285023,86.639,86.61,0.1]
[1773240908112,3.53285023,86.629,86.61,0.1]
[1773240908317,3.53285023,86.659,86.621,3.83221926]
[1773240908934,3.53285023,86.657,86.623,3.83221926]
[1773240910639,7.44713045,86.65,86.623,3.83221926]
[1773240910820,7.44713045,86.65,86.624,11.5441448]
[1773240911135,3.53285023,86.676,86.641,3.83221926]
[1773240911324,11.53735217,86.675,86.641,3.83221926]
[1773240911526,10.97998068,86.67,86.641,3.83221926]
[1773240912339,1.44200265,86.685,86.641,3.83221926]
[1773240912340,15.06971577,86.679,86.641,3.83221926]
[1773240912520,3.53285023,86.687,86.651,3.83221926]
[1773240912720,11.53548893,86.689,86.661,3.83221926]
[1773240912932,3.53285023,86.695,86.663,3.83221926]
[1773240912933,7.44713045,86.69,86.663,3.83221926]
[1773240913422,3.53285023,86.692,86.663,3.83221926]
[1773240914025,3.53285023,86.679,86.651,11.54054771]
[1773240914226,3.53285023,86.679,86.649,14.22081254]
[1773240914630,3.53285023,86.679,86.649,2.68]
[1773240914936,3.53285023,86.668,86.64,7.44713045]
[1773240915246,3.53285023,86.679,86.641,3.83221926]
[1773240915821,3.53285023,86.678,86.641,3.83221926]
[1773240916022,15.06993619,86.677,86.643,3.83221926]
[1773240916322,3.53285023,86.676,86.643,3.83221926]
[1773240916918,11.53708596,86.677,86.642,11.54174649]
[1773240916919,3.53285023,86.684,86.651,3.83221926]
[1773240917123,11.53628739,86.683,86.651,3.83221926]
[1773240917622,3.53285023,86.679,86.642,15.37396575]
[1773240917840,3.53285023,86.679,86.643,3.83221926]
[1773240918146,3.53285023,86.677,86.644,11.54148007]
[1773240918343,3.53285023,86.649,86.617,3.83221926]
[1773240919737,3.73701591,86.639,86.61,2.78]
[1773240919931,3.73701591,86.639,86.61,6.44793456]
[1773240920134,11.54227936,86.638,86.611,11.54587754]
[1773240920338,11.54227936,86.638,86.61,6.44793456]
[1773240920339,3.73701591,86.637,86.61,11.21506501]
[1773240920541,3.73701591,86.637,86.611,11.54587754]
[1773240920941,11.54227936,86.638,86.612,3.66793456]
[1773240921151,1.44236871,86.663,86.612,3.66793456]
[1773240921152,7.44713045,86.65,86.612,3.66793456]
[1773240921330,3.73701591,86.652,86.621,3.66793456]
[1773240921531,7.44713045,86.66,86.631,3.66793456]
[1773240921738,3.73701591,86.649,86.613,6.34793456]
[1773240921941,3.73701591,86.639,86.613,6.34793456]
[1773240922251,11.54227936,86.638,86.614,11.54547763]
[1773240922452,3.73701591,86.639,86.614,15.21341219]
[1773240922757,3.73701591,86.657,86.621,3.66793456]
[1773240922948,11.53958602,86.659,86.631,3.66793456]
[1773240923157,3.73701591,86.658,86.631,3.66793456]
[1773240923829,3.73701591,86.658,86.632,11.54307876]
[1773240924149,3.73701591,86.656,86.632,11.54307876]
[1773240924343,3.73701591,86.656,86.628,11.54356256]
[1773240924527,3.73701591,86.639,86.615,1.15453443]
[1773240924724,3.73701591,86.639,86.611,11.54587754]
[1773240925446,3.73701591,86.655,86.621,3.66793456]
[1773240925654,11.53974866,86.657,86.631,3.66793456]
[1773240925850,3.73701591,86.656,86.631,3.66793456]
[1773240926052,7.44713045,86.65,86.629,11.54340573]
[1773240926355,11.18414636,86.65,86.623,11.54415213]
[1773240927250,3.73701591,86.649,86.623,11.54415213]
[1773240927444,3.73701591,86.649,86.612,3.66793456]
[1773240927649,3.73701591,86.649,86.612,15.21367879]
[1773240927968,3.73701591,86.639,86.612,11.54574423]
[1773240929034,3.73701591,86.637,86.61,0.1]
[1773240929758,11.18414636,86.63,86.61,0.1]
[1773240930252,3.73701591,86.629,86.61,0.1]
[1773240930852,3.73701591,86.641,86.611,3.66793456]
[1773240931056,3.73701591,86.641,86.612,11.54574423]
[1773240931261,11.54201292,86.64,86.613,3.66793456]
[1773240931736,18.98914337,86.64,86.613,3.66793456]
[1773240932639,22.72615928,86.64,86.613,3.66793456]
[1773240932840,3.73701591,86.639,86.613,3.66793456]
[1773240933251,3.73701591,86.637,86.612,11.54574423]
[1773240934153,3.73701591,86.637,86.611,11.54587754]
[1773240934474,3.73701591,86.637,86.612,3.66793456]
[1773240934761,1.44238535,86.662,86.611,11.54587754]
[1773240934762,3.73701591,86.669,86.631,3.66793456]
[1773240935049,15.2751668,86.669,86.631,3.66793456]
[1773240935260,3.73701591,86.668,86.633,3.66793456]
[1773240935640,11.53815089,86.669,86.633,3.66793456]
[1773240936169,11.18414636,86.66,86.633,3.66793456]
[1773240936458,3.73701591,86.659,86.633,3.66793456]
[1773240936636,3.73701591,86.659,86.632,11.54307876]
[1773240936836,11.53815089,86.669,86.625,3.66793456]
[1773240936837,3.73701591,86.649,86.625,3.66793456]
[1773240937146,3.73701591,86.649,86.62,3.66793456]
[1773240937459,7.44713045,86.65,86.62,3.66793456]
[1773240937460,3.73701591,86.647,86.621,11.54454462]
[1773240937665,3.73701591,86.639,86.618,2.68]
[1773240939758,11.54227936,86.638,86.618,2.68]
[1773240940846,3.66651472,86.645,86.619,11.54481118]
[1773240941265,11.54048798,86.652,86.621,3.82940533]
[1773240941778,11.53974314,86.658,86.623,3.82940533]
[1773240941938,11.53974314,86.658,86.631,3.82940533]
[1773240942665,2.98553567,86.66,86.631,3.82940533]
[1773240943466,1.44213574,86.677,86.631,3.82940533]
[1773240943467,11.5384705,86.667,86.631,3.82940533]
[1773240943653,3.66651472,86.666,86.631,3.82940533]
[1773240943840,1.44213574,86.677,86.633,3.82940533]
[1773240943841,3.66651472,86.659,86.633,3.82940533]
[1773240944476,11.53868343,86.665,86.633,3.82940533]
[1773240944648,2.98553567,86.66,86.633,3.82940533]
[1773240944844,3.66651472,86.664,86.633,3.82940533]
[1773240945369,2.98553567,86.66,86.633,3.82940533]
[1773240945570,7.46074255,86.66,86.633,3.82940533]
[1773240945772,7.46074255,86.67,86.635,3.82940533]
[1773240945974,11.12725727,86.67,86.635,3.82940533]
[1773240946179,3.66651472,86.669,86.635,3.82940533]
[1773240946557,3.66651472,86.649,86.629,11.54335192]
[1773240947072,3.66651472,86.649,86.622,2.68]
[1773240947378,3.66651472,86.649,86.622,14.22428746]
[1773240947577,3.66651472,86.649,86.622,2.68]
[1773240948253,15.207462,86.648,86.622,14.22428746]
[1773240948568,15.207462,86.648,86.622,18.05369279]
[1773240948782,3.66651472,86.647,86.622,14.22428746]
[1773240948965,3.66651472,86.647,86.614,28.86349072]
[1773240948966,3.66651472,86.639,86.614,11.54534824]
[1773240949525,3.66651472,86.639,86.61,3.92940533]
[1773240949777,40.39331548,86.648,86.61,0.1]
[1773240949778,3.50860992,86.629,86.61,0.1]
[1773240950483,11.54361176,86.628,86.61,0.1]
[1773240950984,3.50860992,86.637,86.61,3.78749081]
[1773240951281,7.46487359,86.63,86.61,3.78749081]
[1773240951461,11.54254582,86.636,86.61,3.78749081]
[1773240951462,3.50860992,86.635,86.61,3.78749081]
[1773240951863,3.50860992,86.629,86.61,0.1]
[1773240952077,40.39891037,86.636,86.61,0.1]
[1773240952078,3.50860992,86.619,86.61,0.1]
[1773240952281,3.50860992,86.619,86.598,11.54750826]
[1773240952975,3.50860992,86.609,86.586,11.54921118]
[1773240953165,3.50860992,86.607,86.575,3.68749081]
[1773240953370,2.62,86.637,86.575,3.68749081]
[1773240953371,10.97348351,86.63,86.591,3.68749081]
[1773240953571,3.50860992,86.629,86.591,3.68749081]
[1773240953869,7.46487359,86.62,86.591,3.68749081]
[1773240954076,3.50860992,86.619,86.591,3.68749081]
[1773240954277,3.50860992,86.619,86.587,2.68]
[1773240954484,3.50860992,86.6,86.575,3.68749081]
[1773240954682,3.50860992,86.599,86.575,3.68749081]
[1773240954879,15.05622071,86.598,86.575,3.68749081]
[1773240955588,15.05622071,86.598,86.576,11.55054518]
[1773240956686,3.50860992,86.615,86.581,3.68749081]
[1773240956888,7.46487359,86.61,86.583,3.68749081]
[1773240957186,7.46487359,86.62,86.583,3.68749081]
[1773240957378,11.54427807,86.623,86.591,3.68749081]
[1773240957783,7.46487359,86.62,86.591,3.68749081]
[1773240957983,11.54427807,86.623,86.591,3.68749081]
[1773240958289,3.50860992,86.619,86.591,3.68749081]
[1773240958488,7.46487359,86.61,86.582,11.54974475]
[1773240958687,3.50860992,86.609,86.582,15.23723556]
[1773240958889,3.50860992,86.598,86.566,11.55187949]
[1773240959072,10.97348351,86.59,86.56,3.78749081]
[1773240959390,3.50860992,86.59,86.562,3.68749081]
[1773240960279,3.50860992,86.589,86.562,3.68749081]
[1773240961084,11.54681077,86.604,86.571,3.68749081]
[1773240961587,3.50860992,86.599,86.571,3.68749081]
[1773240962294,3.50860992,86.629,86.591,3.68749081]
[1773240962695,3.50860992,86.619,86.591,3.68749081]
[1773240963076,11.5441379,86.625,86.593,3.68749081]
[1773240963386,3.50860992,86.624,86.593,3.68749081]
[1773240963774,3.50860992,86.624,86.6,7.46487359]
[1773240963966,15.05275472,86.624,86.593,3.68749081]
[1773240964172,3.50860992,86.623,86.593,3.68749081]
[1773240964372,3.50860992,86.619,86.593,3.68749081]
[1773240964872,3.50860992,86.609,86.576,3.68749081]
[1773240965079,3.50860992,86.608,86.58,15.23741125]
[1773240965273,3.50860992,86.608,86.581,3.68749081]
[1773240965899,3.50860992,86.607,86.576,2.68]
[1773240966096,3.50860992,86.599,86.576,2.68]
[1773240966290,3.50860992,86.589,86.56,0.1]
[1773240966596,3.50860992,86.589,86.561,11.55254675]
[1773240967192,3.50860992,86.587,86.561,11.55254675]
[1773240967576,3.50860992,86.589,86.561,11.55254675]
[1773240967987,15.05742096,86.589,86.561,11.55254675]
[1773240968289,3.50860992,86.588,86.561,11.55254675]
[1773240968484,3.50860992,86.588,86.56,0.1]
[1773240968681,7.46487359,86.61,86.571,3.68749081]
[1773240968887,3.50860992,86.609,86.571,3.68749081]
[1773240969379,2.62,86.627,86.566,2.7]
[1773240969380,3.50860992,86.599,86.566,2.7]
[1773240969584,3.50860992,86.589,86.566,2.7]
[1773240969772,3.50860992,86.589,86.567,11.55174604]
[1773240970181,3.50860992,86.589,86.566,2.7]
[1773240970381,1.44252622,86.607,86.56,0.1]
[1773240970382,3.50860992,86.579,86.56,0.1]
[1773240970691,7.46487359,86.6,86.561,3.68749081]
[1773240970890,7.46487359,86.6,86.571,3.68749081]
[1773240971495,11.54747745,86.599,86.571,3.68749081]
[1773240972017,11.54747745,86.599,86.572,11.55107887]
[1773240972293,28.8656937,86.608,86.573,3.68749081]
[1773240972695,11.54426063,86.624,86.591,3.68749081]
[1773240973013,7.46487359,86.62,86.591,3.68749081]
[1773240973600,11.54481118,86.619,86.591,3.68749081]
[1773240973805,11.54481118,86.619,86.592,11.54841093]
[1773240973983,11.54481118,86.619,86.591,3.68749081]
[1773240974301,15.0534211,86.619,86.591,3.68749081]
[1773240974883,43.91544906,86.619,86.591,3.68749081]
[1773240976087,11.54436578,86.623,86.592,3.68749081]
[1773240977197,11.54374502,86.627,86.593,11.54827757]
[1773240977398,11.54374502,86.627,86.594,3.68749081]
[1773240977697,3.50860992,86.626,86.594,3.68749081]
[1773240978394,11.54374502,86.627,86.594,3.68749081]
[1773240979694,7.46487359,86.63,86.596,3.68749081]
[1773240979902,11.54327206,86.631,86.601,3.75651069]
[1773240980093,7.46487359,86.63,86.601,3.75651069]
[1773240980405,1.44252622,86.645,86.601,3.75651069]
[1773240980406,7.46487359,86.64,86.601,3.75651069]
[1773240980603,11.54148007,86.644,86.611,3.75651069]
[1773240981402,11.54095506,86.648,86.621,3.75651069]
[1773240981588,7.13062499,86.654,86.623,3.75651069]
[1773240981789,18.67084499,86.654,86.623,3.75651069]
[1773240982188,3.70583946,86.671,86.631,3.75651069]
[1773240982393,7.46487359,86.67,86.631,3.75651069]
[1773240982594,11.17071305,86.67,86.631,3.75651069]
[1773240982795,7.46487359,86.66,86.631,3.75651069]
[1773240983309,3.70583946,86.669,86.631,3.75651069]
[1773240986304,11.53828402,86.668,86.632,11.54307876]
[1773240986801,3.70583946,86.667,86.633,3.75651069]
[1773240988408,11.53855029,86.666,86.635,3.49200872]
[1773240988605,3.76213747,86.665,86.635,3.49200872]
[1773240990511,3.76213747,86.663,86.635,3.49200872]
[1773240990709,3.76213747,86.659,86.629,11.54347851]
[1773240991008,3.76213747,86.659,86.629,15.03548723]
[1773240991388,11.53881657,86.664,86.631,3.49200872]
[1773240991594,3.76213747,86.667,86.631,3.49200872]
[1773240992903,3.76213747,86.667,86.63,7.46487359]
[1773240992904,3.76213747,86.665,86.633,3.49200872]
[1773240993105,3.76213747,86.665,86.626,15.03580308]
[1773240993314,3.76213747,86.659,86.627,3.49200872]
[1773240993494,3.76213747,86.659,86.631,3.49200872]
[1773240993696,11.53855029,86.666,86.631,3.49200872]
[1773240994008,11.53855029,86.666,86.641,3.49200872]
[1773240994191,3.76213747,86.678,86.641,3.49200872]
[1773240994392,3.76213747,86.678,86.642,3.49200872]
[1773240994607,3.76213747,86.678,86.651,3.49200872]
[1773240994807,3.76213747,86.678,86.65,7.46487359]
[1773240994808,15.29815869,86.685,86.652,11.54041453]
[1773240995106,15.29815869,86.685,86.661,3.49200872]
[1773240995313,3.76213747,86.699,86.661,3.49200872]
[1773240995611,3.76213747,86.697,86.661,3.49200872]
[1773240996900,3.76213747,86.695,86.661,3.49200872]
[1773240997211,3.76213747,86.695,86.663,3.49200872]
[1773240998911,2.64,86.708,86.653,1.15402813]
[1773240998912,3.76213747,86.679,86.653,1.15402813]
[1773240999109,3.76213747,86.669,86.63,10.95688231]
[1773240999413,3.76213747,86.669,86.64,10.95688231]
[1773240999709,3.76213747,86.686,86.651,3.49200872]
[1773241000011,3.76213747,86.686,86.633,11.54291261]
[1773241000012,11.53402537,86.7,86.671,3.51162255]
[1773241000894,15.13453501,86.7,86.671,3.51162255]
[1773241002595,15.13453501,86.7,86.656,28.84940553]
[1773241002596,3.60050964,86.689,86.656,3.51162255]
[1773241004208,11.535622,86.688,86.661,3.51162255]
[1773241004712,11.535622,86.688,86.669,3.51162255]
[1773241005310,11.535622,86.688,86.66,10.97649614]
[1773241005605,11.535622,86.688,86.653,3.51162255]
[1773241005606,3.60050964,86.687,86.653,3.51162255]
[1773241006614,1.44180306,86.697,86.64,8.61907488]
[1773241006615,3.60050964,86.679,86.64,8.61907488]
[1773241006819,98.05504925,86.686,86.595,3.51162255]
[1773241006820,3.60050964,86.649,86.595,3.51162255]
[1773241006992,11.06538323,86.62,86.582,3.51162255]
[1773241007316,3.60050964,86.619,86.582,3.51162255]
[1773241008391,3.60050964,86.63,86.591,3.51162255]
[1773241008593,11.54481118,86.619,86.591,3.51162255]
[1773241009001,11.54481118,86.619,86.593,3.51162255]
[1773241010518,11.54396456,86.626,86.601,3.55309448]
[1773241010710,11.54396456,86.626,86.59,28.87157931]
[1773241010711,7.46487359,86.62,86.591,3.55309448]
[1773241011310,11.54396456,86.626,86.591,3.55309448]
[1773241011515,11.54396456,86.626,86.601,3.55309448]
[1773241012520,11.54396456,86.626,86.573,3.69383402]
[1773241012521,11.54396456,86.626,86.603,3.55309448]
[1773241013214,7.46564184,86.62,86.592,3.55309448]
[1773241013413,3.82965766,86.619,86.582,3.55309448]
[1773241014419,7.46564184,86.62,86.593,3.55309448]
[1773241014621,11.54481118,86.619,86.593,3.55309448]
[1773241016316,3.82965766,86.627,86.601,11.54721077]
[1773241016518,11.54347851,86.629,86.602,3.55309448]
[1773241016716,11.54227936,86.638,86.602,3.55309448]
[1773241018623,11.54227936,86.638,86.604,3.55309448]
[1773241018810,11.54227936,86.638,86.61,7.46564184]
[1773241019017,11.54227936,86.638,86.611,3.55309448]
[1773241020525,11.54121367,86.646,86.621,3.55309448]
[1773241020730,15.36927316,86.658,86.63,11.01873632]
[1773241020905,15.36927316,86.658,86.631,3.55309448]
[1773241021099,15.36927316,86.658,86.62,7.46564184]
[1773241021100,3.82965766,86.657,86.613,3.55309448]
[1773241021400,3.82965766,86.657,86.621,3.55309448]
[1773241022497,11.53988183,86.656,86.622,11.54441135]
[1773241022704,11.53988183,86.656,86.63,11.01873632]
[1773241023224,2.47215037,105.98,86.622,11.54441135]
[1773241023225,11.53868343,86.665,86.64,11.01873632]
[1773241023526,3.82965766,86.664,86.632,3.55309448]
[1773241024705,3.82965766,86.664,86.63,7.46564184]
[1773241024706,11.53894972,86.663,86.634,3.55309448]
[1773241025011,3.82965766,86.662,86.634,3.55309448]
[1773241025822,40.38632403,86.663,86.61,7.46564184]
[1773241025823,3.82965766,86.649,86.61,7.46564184]
[1773241026028,3.82965766,86.629,86.595,3.55309448]
[1773241026212,3.82965766,86.629,86.601,3.55309448]
[1773241027111,11.54361176,86.628,86.603,3.55309448]
[1773241027519,15.3718038,86.639,86.603,3.55309448]
[1773241027725,3.82965766,86.638,86.603,3.55309448]
[1773241028228,11.54214614,86.639,86.611,3.55309448]
[1773241029427,11.54121367,86.646,86.612,11.54574423]
[1773241029625,11.54059995,86.651,86.621,3.55309448]
[1773241030327,3.82965766,86.639,86.611,3.55309448]
[1773241030631,3.82965766,86.639,86.611,15.09897202]
[1773241031206,3.82965766,86.639,86.612,3.55309448]
[1773241031829,11.54227936,86.638,86.613,11.54561093]
[1773241032068,11.54227936,86.638,86.613,15.09870541]
[1773241032414,11.54180513,86.642,86.621,3.55309448]
[1773241035414,28.84711852,86.664,86.631,3.55309448]
[1773241035722,3.82965766,86.663,86.631,3.55309448]
[1773241035918,11.53894972,86.663,86.641,3.55309448]
[1773241036338,3.82965766,86.659,86.631,3.55309448]
[1773241037733,3.82965766,86.659,86.62,2.72]
[1773241037945,3.82965766,86.659,86.6,3.69383402]
[1773241037946,2.98363247,86.62,86.58,2.98363247]
[1773241038233,3.82965766,86.638,86.6,2.98363247]
[1773241039117,3.82965766,86.638,86.61,2.98363247]
[1773241039524,3.82965766,86.638,86.6,2.98363247]